[Event "GER-ch Youth-U16 2022"]
[Site "Willingen"]
[Date "2022.06.07"]
[Round "4.16"]
[White "Neuber, Pascal"]
[Black "Hecht, Jonas Christian"]
[Result "1-0"]
[ECO "C29"]
[WhiteElo "1802"]
[BlackElo "1884"]
[Annotator "NA RC COMBH"]
[PlyCount "79"]
[EventDate "2022.06.05"]
[EventType "swiss"]
[EventRounds "9"]
[EventCountry "GER"]
[SourceTitle "playchess.com"]
[Source "ChessBase"]
[SourceQuality "1"]
[TimeControl "40/4500+30:900+30"]

1. e4 {[%emt 0:00:00]} e5 {[%emt 0:00:00]} 2. Nc3 {[%emt 0:00:00]} Nf6 {[%emt 0:00:00]} 3. f4 {[%emt 0:00:00]} d5 {[%emt 0:00:00]} 4. fxe5 {[%emt 0:00:00]} Nxe4 {[%emt 0:00:00]} 5. Nf3 {[%emt 0:00:00]} Bc5 {[%emt 0:00:00]} 6. d4 {[%emt 0:00:00]} Bb4 {[%emt 0:00:00]} 7. Bd2 {[%emt 0:00:00]} c5 {[%emt 0:00:00]} 8. a3 {[%emt 0:00:00]} Bxc3 {[%emt 0:00:00]} 9. Bxc3 {[%emt 0:00:05]} Bg4 {[%emt 0:00:00]} 10. Be2 {[%emt 0:12:44]} Nc6 {[%emt 0:00:00]} 11. Qd3 {[%emt 0:22:53]} cxd4 {[%emt 0:25:07]} 12. Bxd4 {[%emt 0:01:13]} O-O {[%emt 0:06:55]} 13. O-O {[%emt 0:03:44]} Rc8 {[%emt 0:02:50]} 14. c3 {[%emt 0:01:38]} Re8 {[%emt 0:04:29]} 15. Rad1 {[%emt 0:02:33]} Qe7 {[%emt 0:10:05]} ({Much less strong is} 15... Nxd4 16. Qxd4 Qc7 17. Qxd5 Bxf3 18. Bxf3 Rxe5 19. Qd4 $16) 16. Qb5 {[%emt 0:12:16]} Red8 {[%emt 0:04:48]} 17. Rfe1 {[%emt 0:04:54]} Ng5 {[%emt 0:06:20]} 18. Bc5 {[%emt 0:05:51]} Nxf3+ {[%emt 0:02:54]} 19. gxf3 {[%emt 0:00:48]} Qg5 {[%emt 0:00:24]} 20. fxg4 {[%emt 0:00:26]} Nxe5 {[%emt 0:00:12]} 21. h3 {[%emt 0:03:20]} h5 {[%emt 0:03:52]} 22. h4 {[%emt 0:06:11]} Qf4 {[%emt 0:08:36]} 23. Bf2 {[%emt 0:00:20]} Nxg4 {[%emt 0:01:03]} 24. Bxg4 {[%emt 0:00:31]} Qxg4+ {[%emt 0:00:05]} 25. Kf1 {[%emt 0:00:19]} Qh3+ {[%emt 0:00:06]} 26. Kg1 {[%emt 0:02:04]} Rd6 {[%emt 0:01:26]} 27. Rxd5 {[%emt 0:02:29]} Rxd5 {[%emt 0:01:13]} 28. Qxd5 {[%emt 0:00:24]} Rc6 {[%emt 0:00:14]} 29. Re8+ {[%emt 0:00:08]} Kh7 {[%emt 0:00:08]} 30. Re5 {[%emt 0:02:19]} Qg4+ {[%emt 0:03:05]} (30... Rg6+ $142 31. Rg5 b6 32. Rxg6 fxg6) 31. Kf1 {[%emt 0:00:13]} f6 {[%emt 0:01:12]} 32. Qe4+ {[%emt 0:00:29]} Qxe4 {[%emt 0:00:19]} 33. Rxe4 {[%emt 0:00:01]} g5 {[%emt 0:00:11]} 34. Re7+ {[%emt 0:00:24]} Kg6 {[%emt 0:00:08]} 35. Rxb7 $18 {[%emt 0:00:19]} a6 {[%emt 0:00:18]} 36. hxg5 {[%emt 0:00:12]} Kxg5 {[%emt 0:00:19]} 37. Rb4 {[%emt 0:00:14]} a5 {[%emt 0:00:17]} 38. Ra4 {[%emt 0:00:09]} Ra6 {[%emt 0:00:08]} 39. b4 {[%emt 0:00:16]} Rc6 {[%emt 0:00:04]} 40. Rxa5+ {[%emt 0:00:10]} 1-0

[Event "GER-ch Youth-U16 2022"]
[Site "Willingen"]
[Date "2022.06.08"]
[Round "5.1"]
[White "Farokhi, Keyvan"]
[Black "Lutsko, Artem"]
[Result "1/2-1/2"]
[ECO "E04"]
[WhiteElo "2360"]
[BlackElo "2392"]
[Annotator "TA"]
[PlyCount "96"]
[EventDate "2022.06.05"]
[EventType "swiss"]
[EventRounds "9"]
[EventCountry "GER"]
[SourceTitle "playchess.com"]
[Source "ChessBase"]
[SourceQuality "1"]
[TimeControl "40/4500+30:900+30"]

{[%evp 10,96,25,26,29,27,32,20,37,18,27,26,30,14,13,32,27,35,63,60,99,80,83,94,174,31,83,83,116,104,114,125,149,90,90,88,116,116,116,90,101,100,93,82,114,58,109,109,119,122,154,159,159,140,167,151,159,152,159,69,106,65,55,18,36,36,72,71,77,72,85,82,82,92,84,79,81,8,13,8,8,0,0,0,0,0,0,0,7]} 1. d4 {[%emt 0:00:00]} Nf6 {[%emt 0:00:00]} 2. c4 {[%emt 0:00:00]} e6 {[%emt 0:00:00]} 3. Nf3 {[%emt 0:00:00]} d5 {[%emt 0:00:00][%cal Bd7d5,Bd5c4][%mdl 32]} 4. g3 {[%emt 0:00:00]} dxc4 {[%emt 0:00:00]} 5. Bg2 {[%emt 0:00:00]} Bb4+ {[%emt 0:00:00]} 6. Bd2 {[%emt 0:00:00]} c5 {[%emt 0:00:00] E04: Open Catalan: 5 Nf3.} 7. Bxb4 {[%emt 0:00:00]} cxb4 {[%emt 0:00:00]} 8. Ne5 {[%emt 0:00:00]} O-O {[%emt 0:00:00][%cal Ob8c6]} 9. Nxc4 {[%emt 0:00:00] 9.a3 deserves study.} Nc6 {[%emt 0:00:00]} 10. e3 {[%emt 0:00:00]} e5 {[%emt 0:00:14]} 11. d5 {[%emt 0:00:00] Against Be6} (11. Nxe5 Nxe5 12. dxe5 Qxd1+ 13. Kxd1 Ng4 $11) 11... b5 {[%emt 0:00:07] [#]} 12. O-O $1 {[%emt 0:07:28] is the legacy move (12.dxc6).} bxc4 {[%emt 0:06:48]} (12... Bg4 13. Qd2) 13. dxc6 {[%emt 0:00:05]} Ba6 {[%emt 0:20:06][%cal Oc4c3] [#]} 14. Qc2 $146 {[%emt 0:12:37] Inhibits c3.} ({Predecessor:} 14. Qc1 Qb6 15. a3 c3 16. Re1 e4 17. axb4 cxb2 18. Qxb2 Qxc6 19. Nd2 Bd3 20. Nb3 {½-½ (56) Baburin,A (2520)-Moroni,L (2225) Porto San Giorgio 2013}) 14... e4 {[%emt 0:03:43][%cal Oc4c3]} 15. Rd1 {[%emt 0:05:55]} Qb6 {[%emt 0:04:49]} 16. Nd2 $1 {[%emt 0:01:12]} (16. Bxe4 $2 b3 17. Bxh7+ (17. axb3 $2 cxb3 18. Bxh7+ Nxh7 $19) 17... Nxh7 18. axb3 cxb3 $19) 16... Qxc6 {[%emt 0:12:55]} (16... Rac8 $16 {was necessary.}) 17. a3 {[%emt 0:03:28]} (17. Bxe4 Nxe4 18. Qxe4 Rfc8 $15) (17. Nxe4 $18 {Hoping for Rd6.} Rad8 18. Rd6 $1 Qxe4 19. Bxe4 Rxd6 20. Bg2) 17... Rab8 {[%emt 0:08:57] [#]} ({Black should play} 17... b3 $14 18. Nxb3 Qa4) 18. axb4 $1 $16 {[%emt 0:01:47][%cal Rd2e4]} (18. Bxe4 b3 19. Bxc6 bxc2 $17) 18... Rxb4 {[%emt 0:01:02]} 19. Nxe4 {[%emt 0:00:23] aiming for Rd6.} ({Much worse is} 19. Bxe4 $6 Nxe4 20. Qxe4 Qb5 $11) 19... Nxe4 {[%emt 0:00:55]} 20. Bxe4 {[%emt 0:00:34]} ({Don't play} 20. Qxe4 Qxe4 21. Bxe4 Bb5 $14) 20... Qf6 {[%emt 0:00:21]} 21. Qc3 {[%emt 0:01:00]} (21. Bxh7+ $142 Kh8 22. Rd4) 21... Rb6 {[%emt 0:03:14]} 22. Qxf6 {[%emt 0:05:42]} gxf6 {[%emt 0:00:04]} 23. Ra4 {[%emt 0:06:53]} Bc8 {[%emt 0:05:51]} 24. Rd2 {[%emt 0:03:29]} Ba6 {[%emt 0:05:01]} 25. Bd5 {[%emt 0:07:30]} Rc8 {[%emt 0:00:58]} 26. Rc2 {[%emt 0:00:52]} Rc5 {[%emt 0:03:42]} 27. e4 {[%emt 0:02:44]} (27. Bxc4 $16 Rxc4 28. Rcxc4 Bxc4 29. Rxc4) 27... Kf8 {[%emt 0:02:33]} (27... Kg7 $14) 28. f3 {[%emt 0:03:48]} Rc7 {[%emt 0:02:59]} 29. Kf2 {[%emt 0:02:55]} Ke7 {[%emt 0:01:49]} 30. Ke3 {[%emt 0:01:44]} Bb5 {[%emt 0:01:41]} 31. Ra3 {[%emt 0:00:35]} Kd8 {[%emt 0:00:19]} 32. h4 {[%emt 0:01:48]} h6 {[%emt 0:00:48]} 33. Rac3 {[%emt 0:01:41]} Ba6 {[%emt 0:01:18]} 34. Kd2 {[%emt 0:01:58]} (34. Bxc4 $16 Bxc4 35. Rxc4 Rxc4 36. Rxc4) 34... f5 {[%emt 0:00:44]} 35. Kc1 {[%emt 0:01:26]} ({Resist} 35. Bxc4 Bxc4 36. Rxc4 Rxc4 37. Rxc4 Rxb2+ 38. Ke3 fxe4 $14) 35... Rg6 {[%emt 0:00:23]} 36. f4 {[%emt 0:04:05]} fxe4 {[%emt 0:00:03]} 37. Bxe4 {[%emt 0:00:06]} Rd6 {[%emt 0:00:38]} 38. Rd2 {[%emt 0:03:02]} Ke7 {[%emt 0:00:54]} 39. g4 {[%emt 0:01:02]} Re6 {[%emt 0:01:12]} 40. Rd4 {[%emt 0:00:55] White is more active.} Rd6 {[%emt 0:00:35]} 41. Rxd6 {[%emt 0:00:00]} Kxd6 {[%emt 0:00:00][%mdl 4096] Endgame KRB-KRB} 42. Kd2 {[%emt 0:00:16]} f6 {[%emt 0:00:00]} 43. Bf3 {[%emt 0:02:04]} (43. Rg3 $16) 43... Kc5 $11 {[%emt 0:00:00] The position is equal.} 44. Re3 {[%emt 0:01:47]} Bb7 {[%emt 0:00:00]} 45. Bxb7 {[%emt 0:05:38]} Rxb7 {[%emt 0:00:27]} 46. Kc2 {[%emt 0:00:12]} Rg7 {[%emt 0:00:34]} 47. Rg3 {[%emt 0:00:24]} Kd4 {[%emt 0:00:05]} 48. g5 {[%emt 0:00:11]} fxg5 {[%emt 0:01:05] Black escapes into a draw.  Weighted Error Value: White=0.18 (very precise) /Black=0.13 (very precise)} 1/2-1/2

[Event "GER-ch Youth-U16 2022"]
[Site "Willingen"]
[Date "2022.06.08"]
[Round "5.2"]
[White "Petrovskyi, Vadym"]
[Black "Jaskulski, Jan"]
[Result "1-0"]
[ECO "B69"]
[WhiteElo "2330"]
[BlackElo "1727"]
[Annotator "TA"]
[PlyCount "55"]
[EventDate "2022.06.05"]
[EventType "swiss"]
[EventRounds "9"]
[EventCountry "GER"]
[SourceTitle "playchess.com"]
[Source "ChessBase"]
[SourceQuality "1"]
[TimeControl "40/4500+30:900+30"]

{[%evp 24,55,52,62,70,57,105,90,197,176,177,102,179,158,427,439,439,432,428,437,606,586,632,566,762,756,762,757,962,954,1493,1441,1441,942]} 1. e4 {[%emt 0:00:00]} c5 {[%emt 0:00:00]} 2. Nf3 {[%emt 0:00:00]} d6 {[%emt 0:00:00]} 3. d4 {[%emt 0:00:00]} cxd4 {[%emt 0:00:00]} 4. Nxd4 {[%emt 0:00:00]} Nf6 {[%emt 0:00:00]} 5. Nc3 {[%emt 0:00:00]} Nc6 {[%emt 0:00:00]} 6. Bg5 {[%emt 0:00:00]} e6 {[%emt 0:00:00]} 7. Qd2 {[%emt 0:00:00]} a6 {[%emt 0:00:00]} 8. O-O-O {[%emt 0:00:00]} Bd7 {[%emt 0:00:00]} 9. f4 {[%emt 0:00:00][%cal Bf2f4,Bf4f5][%mdl 32]} Be7 {[%emt 0:00:00]} 10. Nf3 {[%emt 0:00:00]} b5 {[%emt 0:00:00]} 11. Bxf6 {[%emt 0:00:00]} gxf6 {[%emt 0:00:00]} 12. Kb1 {[%emt 0:00:00]} Qb6 {[%emt 0:00:00]} 13. f5 {[%emt 0:00:00]} h5 {[%emt 0:02:59] B69: Sicilian: Richter-Rauzer: 7...a6 8 0-0-0 Bd7 9 f4 Be7 10 Nf3 b5 11 Bxf6.} 14. Ne2 {[%emt 0:00:00][%cal Bc3e2,Be2f4,Bf4d5][%mdl 32]} O-O-O {[%emt 0:10:09]} (14... Qf2 $14) 15. Nf4 $16 {[%emt 0:00:00]} Rdg8 {[%emt 0:02:27] [#]} (15... Bf8 $16) 16. g3 $146 {[%emt 0:00:00]} ({Predecessor:} 16. fxe6 fxe6 17. g3 Qc5 18. Bh3 Ne5 19. Nd4 Nc4 20. Qe1 e5 21. Nd5 Bxh3 22. Nxe7+ {1-0 (37) Walach,M (2367)-Zilka,S (2323) Karvina 2005}) 16... Ne5 {[%emt 0:11:11]} 17. Bh3 {[%emt 0:05:07]} Ng4 {[%emt 0:24:45]} (17... Nxf3 $16 {might work better.} 18. Qc3+ Bc6) 18. Nd4 {[%emt 0:02:59][%cal Rf5e6]} e5 $2 {[%emt 0:03:10] A mistake that costs the game.} (18... d5 $16 19. Rhe1 (19. exd5 e5 $11) 19... Bd8) 19. Nd5 $1 {[%emt 0:00:26][%csl LRb6,LRe7] White is clearly winning.} Qd8 {[%emt 0:00:06]} 20. Nb3 {[%emt 0:06:56] Pair of Knights!} Bc6 {[%emt 0:02:15]} 21. c4 {[%emt 0:14:44] [#] Black must now prevent cxb5.} ({Much less strong is} 21. Qc3 Kd7 22. Bxg4 (22. Na5 Bxd5 23. exd5 Qc7 $14) 22... hxg4 23. Nc5+ (23. Na5 Bxd5 24. Rxd5 Qb6 $14) 23... Ke8 $18) 21... Kd7 {[%emt 0:11:54]} 22. cxb5 {[%emt 0:01:10]} axb5 {[%emt 0:00:13]} 23. Rc1 {[%emt 0:00:57][%cal Bd1c1,Bc1c7,Bc7c8][%mdl 32]} Bxd5 {[%emt 0:02:05]} 24. Qxd5 {[%emt 0:00:14][%cal Rd5b5]} ({Weaker is} 24. exd5 Qa8 $16) 24... Ke8 {[%emt 0:00:03]} 25. Bxg4 {[%emt 0:00:50]} hxg4 {[%emt 0:00:39]} 26. Qb7 {[%emt 0:00:06]} Qd7 {[%emt 0:03:51]} 27. Rc7 {[%emt 0:00:07]} Qd8 {[%emt 0:00:09]} 28. Rc8 {[%emt 0:00:25] Weighted Error Value: White=0.12 (very precise) /Black=0.73} 1-0

[Event "GER-ch Youth-U16 2022"]
[Site "Willingen"]
[Date "2022.06.08"]
[Round "5.3"]
[White "Bakiev, Diyor"]
[Black "Sidletskyi, Ivan"]
[Result "1-0"]
[ECO "B31"]
[WhiteElo "2157"]
[BlackElo "2084"]
[Annotator "TA"]
[PlyCount "119"]
[EventDate "2022.06.05"]
[EventType "swiss"]
[EventRounds "9"]
[EventCountry "GER"]
[SourceTitle "playchess.com"]
[Source "ChessBase"]
[SourceQuality "1"]
[TimeControl "40/4500+30:900+30"]

{[%evp 9,119,23,29,20,35,10,14,8,27,0,20,0,50,22,37,-8,0,-34,-28,-53,25,22,30,22,25,12,64,24,40,27,70,64,71,24,24,24,24,24,24,24,24,24,24,24,24,24,55,55,55,55,55,55,55,55,55,55,166,169,174,152,334,325,316,308,285,27,12,16,471,0,28,0,476,446,466,456,439,277,422,360,399,279,258,256,608,583,529,296,297,301,310,310,266,268,267,255,257,156,145,89,66,102,107,114,54,72,1184,1078,1168,1119,6210,831]} 1. e4 {[%emt 0:00:00]} c5 {[%emt 0:00:00]} 2. Nf3 {[%emt 0:00:00]} Nc6 {[%emt 0:00:00]} 3. Bb5 {[%emt 0:00:00]} g6 {[%emt 0:00:00]} 4. Bxc6 {[%emt 0:00:00]} dxc6 {[%emt 0:00:00]} 5. d3 {[%emt 0:00:00]} Qc7 {[%emt 0:00:00]} 6. Be3 {[%emt 0:00:00] B31: Sicilian: 2...Nc6 3 Bb5 g6.} e5 {[%emt 0:00:00]} 7. Nbd2 {[%emt 0:00:00]} Nf6 {[%emt 0:00:00] [#]} 8. h3 $146 {[%emt 0:04:21] The position is equal.} ({Predecessor:} 8. Nc4 Nh5 9. Qd2 f6 10. a4 Be6 11. Qc3 a5 12. h3 Be7 13. g4 Ng7 14. g5 {1-0 (46) Nguyen,N (2641)-Barseghyan,A (2362) Chess.com INT 2020}) 8... Be6 {[%emt 0:01:13]} 9. a4 {[%emt 0:06:40]} h6 {[%emt 0:07:13]} 10. a5 {[%emt 0:02:43]} Rd8 {[%emt 0:05:13]} (10... O-O-O $11) 11. Qc1 {[%emt 0:09:50]} g5 {[%emt 0:08:22]} 12. Nh2 {[%emt 0:07:31]} Nh5 {[%emt 0:06:40]} 13. Ng4 {[%emt 0:05:31]} Nf4 {[%emt 0:03:48]} 14. g3 {[%emt 0:03:31] [#]} Ng2+ {[%emt 0:01:52]} (14... Be7 $1 $15) 15. Kf1 $11 {[%emt 0:01:25]} Nxe3+ {[%emt 0:00:13]} 16. Nxe3 {[%emt 0:00:42]} h5 {[%emt 0:06:26]} 17. Kg2 {[%emt 0:04:02]} Qd7 {[%emt 0:02:40]} (17... f6 $11) 18. Qd1 {[%emt 0:04:55]} (18. h4 $5 {[%cal Rh4g5]}) 18... f6 {[%emt 0:02:02]} 19. Qf3 {[%emt 0:03:11]} Kf7 {[%emt 0:00:50]} 20. Ndc4 {[%emt 0:03:57] Hoping for Nxe5+.} Kg6 {[%emt 0:05:41]} 21. g4 {[%emt 0:01:52] White is more active.} (21. b3 $16) 21... h4 {[%emt 0:05:32]} 22. Nf5 {[%emt 0:02:46]} Rh7 {[%emt 0:01:18]} 23. Qe3 {[%emt 0:04:39]} Qc7 {[%emt 0:01:48]} 24. Rhb1 {[%emt 0:03:36]} Rhd7 {[%emt 0:03:52]} 25. b3 {[%emt 0:01:17]} Ra8 {[%emt 0:02:04]} 26. Ra2 {[%emt 0:02:34]} Rb8 {[%emt 0:04:07]} 27. Qe1 {[%emt 0:02:54]} b5 {[%emt 0:04:37]} 28. axb6 $1 {[%emt 0:00:38]} axb6 {[%emt 0:00:05]} 29. Nce3 {[%emt 0:03:14] Pair of Knights!} Qd8 {[%emt 0:07:41]} 30. Rba1 {[%emt 0:02:53]} b5 {[%emt 0:00:53]} 31. Ra6 {[%emt 0:01:03]} Rc7 {[%emt 0:01:44]} 32. Qa5 {[%emt 0:02:15]} c4 {[%emt 0:01:28]} (32... Qc8 $14) 33. bxc4 $18 {[%emt 0:00:42]} bxc4 {[%emt 0:00:53]} 34. Nxc4 {[%emt 0:01:13]} Bb4 $2 {[%emt 0:01:34] [#]} (34... Rb5 $16 35. Qa4 Rb4) 35. Nxe5+ $1 {[%emt 0:01:04][%mdl 512]} fxe5 {[%emt 0:02:11]} 36. Qxe5 {[%emt 0:00:04][%cal Oa6c6] And now Rxc6! would win.} Bxf5 {[%emt 0:00:30]} 37. Qxf5+ {[%emt 0:01:02]} (37. gxf5+ $18 Kf7 38. Ra7) 37... Kg7 $11 {[%emt 0:00:19]} 38. Qe5+ {[%emt 0:00:56]} Kh7 $2 {[%emt 0:00:35][%mdl 8192] [#]} (38... Kf7 $1 $11) 39. Qf5+ $2 {[%emt 0:00:50]} (39. Rxc6 $1 $18 {[%mdl 512]} Rf7 (39... Rbb7 40. Ra8) 40. Raa6) 39... Kg7 $1 {[%emt 0:00:09]} 40. Qe5+ $2 {[%emt 0:00:59][%mdl 8192]} (40. Ra7 $11 Bd6 41. R1a6) 40... Kh7 $18 {[%emt 0:00:47] [#]} 41. Rxc6 $3 {[%emt 0:00:00][%mdl 512]} Rf7 {[%emt 0:00:00]} (41... Rbb7 42. Ra8) 42. Raa6 {[%emt 0:00:11] White wants to mate with Rh6+.} ({Less strong is} 42. Qe6 Rbb7 43. Rb1 (43. f4 gxf4 44. Qg6+ Kh8 $16) 43... Bf8 44. Rxb7 Rxb7 45. Qf5+ Kg8 $18) 42... Bf8 {[%emt 0:00:00] Against Rh6+} 43. Qe6 {[%emt 0:01:10]} Qe7 {[%emt 0:00:00]} (43... Rg7 {keeps fighting.} 44. Qh6+ Kg8) 44. Qg6+ {[%emt 0:01:46]} Kh8 {[%emt 0:00:00]} 45. Re6 {[%emt 0:02:02]} Rg7 {[%emt 0:00:00]} 46. Qf5 {[%emt 0:01:49]} ({Weaker is} 46. Rxe7 Rxg6 47. Rxg6 Bxe7 $16) 46... Qf7 {[%emt 0:00:00]} (46... Qd7 47. Rg6 Qxf5 48. gxf5 Bb4 49. Rh6+ Rh7) 47. Rf6 {[%emt 0:01:25]} Qe7 {[%emt 0:00:00]} 48. Rae6 {[%emt 0:02:11][%cal Ba6e6,Be6e5,Be5g5][%mdl 32]} Qc5 {[%emt 0:00:00]} 49. Re5 {[%emt 0:00:50] Rh6+ would kill now.} Qc8 {[%emt 0:00:00]} 50. Rh6+ {[%emt 0:01:09]} Kg8 {[%emt 0:00:00]} 51. Qf6 {[%emt 0:00:25]} Rbb7 {[%emt 0:01:49]} 52. Rxg5 {[%emt 0:02:42]} Rbf7 {[%emt 0:00:36]} 53. Qb2 {[%emt 0:01:36][%cal Oh6h4]} Qc7 {[%emt 0:03:19] Strongly threatening ...Qf4.} 54. Rhh5 {[%emt 0:03:14]} ({White should try} 54. Rf5 Rxf5 55. exf5) 54... Rxf2+ $16 {[%emt 0:14:47][%mdl 64] Decoy} 55. Kxf2 {[%emt 0:00:04][%cal Bg2f2,Bf2e2,Be2e1,Be1d2,Bd2c3][%mdl 32] The board is on fire.} Qg3+ {[%emt 0:00:23]} 56. Ke2 {[%emt 0:00:47][%cal Rb2b3]} Qg2+ {[%emt 0:00:11]} 57. Ke1 {[%emt 0:01:05][%cal Rb2a2]} Qg1+ $2 {[%emt 0:01:13][%mdl 8192] [#]} (57... Qg3+ $16 58. Ke2 Qg2+ 59. Ke3 Qxh3+ 60. Kd4 Qf1 61. Qb3+ Qf7 62. Rxg7+ Bxg7+ 63. e5 h3 64. Rxh3 Qxb3 65. cxb3 Bf8) 58. Kd2 $1 $18 {[%emt 0:00:28][%cal Rb2b3] White is clearly winning.} Qh2+ {[%emt 0:02:01] [#]} 59. Kc3 $1 {[%emt 0:00:36][%cal Rb2a2]} Qf4 {[%emt 0:00:32]} 60. Qb3+ {[%emt 0:00:23] Weighted Error Value: White=0.46/Black=0.34} 1-0